Workbook

Sheet Sheet1
A1: 地质12级推免综合成绩公示
A2: 序号 | B2: 学号 | C2: 姓名 | D2: 班级 | E2: 前三年必修课加权平均成绩 | F2: 前三年综合测评成绩 | I2: 前三年必修课优良率 | J2: 综合排名总成绩（总分100即70%部分+30%部分）（保留两位小数） | K2: 英语四级成绩 | L2: 备注 | M2: 曾担任职务
F3: 大一 | G3: 大二 | H3: 大三
A4: 1 | B4: 2012010010 | C4: 张毅颖 | D4: 地质12-1班 | E4: 93.01 | F4: 98.28 | G4: 99.67 | H4: 100.95 | I4: 100% | J4: =E4*0.7+(F4+G4+H4)*0.1 -> 95.00 | K4: 597 | M4: 团支书、党支书
A5: 2 | B5: 2012011677 | C5: 于笑 | D5: 地质12-5班 | E5: 92.08 | F5: 103.52 | G5: 99.15 | H5: 102.55 | I5: 100% | J5: =E5*0.7+(F5+G5+H5)*0.1 -> 94.98 | K5: 638 | M5: 团支书
A6: 3 | B6: 2012010089 | C6: 庞姗 | D6: 地质12创 | E6: 91.49 | F6: 102.13 | G6: 104.49 | H6: 97.76 | I6: 97% | J6: =E6*0.7+(F6+G6+H6)*0.1 -> 94.48 | K6: 642
A7: 4 | B7: 2012010035 | C7: 要常青 | D7: 地质12创 | E7: 90.41 | F7: 91.52 | G7: 105.32 | H7: 104.32 | I7: 100% | J7: =E7*0.7+(F7+G7+H7)*0.1 -> 93.40 | K7: 649 | L7: 放弃 | M7: 心理委员
A8: 5 | B8: 2012011323 | C8: 乔慧丽 | D8: 地质12-5班 | E8: 92.47 | F8: 93.42 | G8: 96.40 | H8: 95.80 | I8: 96% | J8: =E8*0.7+(F8+G8+H8)*0.1 -> 93.29 | K8: 461 | M8: 勤工助学部长
A9: 6 | B9: 2012010009 | C9: 张琰 | D9: 地质12-1班 | E9: 91.90 | F9: 97.69 | G9: 94.37 | H9: 95.76 | I9: 97% | J9: =E9*0.7+(F9+G9+H9)*0.1 -> 93.11 | K9: 546 | M9: 班长、院社联部长
A10: 7 | B10: 2012011750 | C10: 郑天昱 | D10: 地质12-5班 | E10: 90.77 | F10: 95.26 | G10: 95.06 | H10: 97.18 | I10: 98% | J10: =E10*0.7+(F10+G10+H10)*0.1 -> 92.29 | K10: 528 | M10: 团支部书记
A11: 8 | B11: 2012010148 | C11: 司瀚 | D11: 地质12卓 | E11: 89.78 | F11: 96.13 | G11: 94.95 | H11: 100.71 | I11: 93% | J11: =E11*0.7+(F11+G11+H11)*0.1 -> 92.02 | K11: 623 | M11: 院青协部长
A12: 9 | B12: 2012010052 | C12: 杨杜波 | D12: 地质12-2班 | E12: 90.88 | F12: 92.70 | G12: 94.79 | H12: 96.12 | I12: 98% | J12: =E12*0.7+(F12+G12+H12)*0.1 -> 91.98 | K12: 580 | M12: 团支书、院会部长
A13: 10 | B13: 2012011858 | C13: 张天佑 | D13: 地质12创 | E13: 89.27 | F13: 94.92 | G13: 96.68 | H13: 101.80 | I13: 95% | J13: =E13*0.7+(F13+G13+H13)*0.1 -> 91.83 | K13: 575 | M13: 党支部宣传委员
A14: 11 | B14: 2012011822 | C14: 刘立春 | D14: 地质12-5班 | E14: 91.28 | F14: 93.46 | G14: 93.40 | H14: 90.78 | I14: 98% | J14: =E14*0.7+(F14+G14+H14)*0.1 -> 91.66 | K14: 538
A15: 12 | B15: 2012010163 | C15: 黄嵌 | D15: 地质12-5班 | E15: 91.23 | F15: 90.98 | G15: 93.08 | H15: 93.65 | I15: 100% | J15: =E15*0.7+(F15+G15+H15)*0.1 -> 91.63 | K15: 540
A16: 13 | B16: 2012010158 | C16: 周志恒 | D16: 地质12-4班 | E16: 90.80 | F16: 91.97 | G16: 93.18 | H16: 94.57 | I16: 93% | J16: =E16*0.7+(F16+G16+H16)*0.1 -> 91.53 | K16: 521 | M16: 院社联副主席、学习委员
A17: 14 | B17: 2012010062 | C17: 兰才俊 | D17: 地质12卓 | E17: 90.47 | F17: 92.44 | G17: 96.27 | H17: 93.31 | I17: 98% | J17: =E17*0.7+(F17+G17+H17)*0.1 -> 91.53 | K17: 595 | M17: 校社联部长
A18: 15 | B18: 2012010126 | C18: 刘畅 | D18: 地质12-4班 | E18: 89.42 | F18: 90.49 | G18: 95.26 | H18: 97.00 | I18: 95% | J18: =E18*0.7+(F18+G18+H18)*0.1 -> 90.87 | K18: 609 | M18: 院青协主席、组织委员
A19: 16 | B19: 2012010090 | C19: 孙晶波 | D19: 地质12创 | E19: 88.57 | F19: 93.90 | G19: 97.85 | H19: 96.77 | I19: 95% | J19: =E19*0.7+(F19+G19+H19)*0.1 -> 90.85 | K19: 616 | M19: 院青协副主席
A20: 17 | B20: 2012010122 | C20: 蒋诗宁 | D20: 地质12-4班 | E20: 88.75 | F20: 93.25 | G20: 95.52 | H20: 97.19 | I20: 95% | J20: =E20*0.7+(F20+G20+H20)*0.1 -> 90.72 | K20: 523 | M20: 团支书、校会部长
A21: 18 | B21: 2012010012 | C21: 赵学琴 | D21: 地质12-1班 | E21: 89.76 | F21: 93.03 | G21: 90.82 | H21: 94.41 | I21: 97% | J21: =E21*0.7+(F21+G21+H21)*0.1 -> 90.66 | K21: 502 | M21: 院社联部长
A22: 19 | B22: 2012010097 | C22: 官伟 | D22: 地质12-3班 | E22: 89.14 | F22: 88.61 | G22: 94.93 | H22: 98.61 | I22: 95% | J22: =E22*0.7+(F22+G22+H22)*0.1 -> 90.61 | K22: 503 | M22: 社联办公部部长，班长
A23: 20 | B23: 2012011486 | C23: 王莹珠 | D23: 地质12创 | E23: 88.89 | F23: 89.62 | G23: 96.15 | H23: 97.52 | I23: 97% | J23: =E23*0.7+(F23+G23+H23)*0.1 -> 90.55 | K23: 564 | M23: 圣龙国学社主席
A24: 21 | B24: 2012011325 | C24: 唐莉 | D24: 地质12-5班 | E24: 89.86 | F24: 88.10 | G24: 93.41 | H24: 92.42 | I24: 98% | J24: =E24*0.7+(F24+G24+H24)*0.1 -> 90.30 | K24: 546 | L24: 放弃 | M24: 组织委员
A25: 22 | B25: 2012011455 | C25: 张镭宝 | D25: 地质12创 | E25: 87.39 | F25: 94.57 | G25: 97.13 | H25: 97.70 | I25: 90% | J25: =E25*0.7+(F25+G25+H25)*0.1 -> 90.11 | K25: 582 | M25: 班长、校友联络会主席
A26: 23 | B26: 2012010169 | C26: 祝丛茜 | D26: 地质12-5班 | E26: 88.94 | F26: 94.09 | G26: 92.13 | H26: 91.47 | I26: 100% | J26: =E26*0.7+(F26+G26+H26)*0.1 -> 90.03 | K26: 533 | L26: 放弃 | M26: 班长
A27: 24 | B27: 2012010108 | C27: 唐自成 | D27: 地质12-3班 | E27: 88.64 | F27: 90.47 | G27: 94.49 | H27: 93.90 | I27: 92% | J27: =E27*0.7+(F27+G27+H27)*0.1 -> 89.93 | K27: 450 | M27: 院青协副主席，班长
A28: 25 | B28: 2012010005 | C28: 王欢 | D28: 地质12卓 | E28: 88.53 | F28: 91.31 | G28: 91.41 | H28: 96.05 | I28: 93% | J28: =E28*0.7+(F28+G28+H28)*0.1 -> 89.85 | K28: 519 | M28: 地质爱好者协会副主席
A29: 26 | B29: 2012010826 | C29: 郭雪晴 | D29: 地质12-2班 | E29: 88.78 | F29: 92.05 | G29: 90.03 | H29: 91.75 | I29: 92% | J29: =E29*0.7+(F29+G29+H29)*0.1 -> 89.53 | K29: 553 | M29: 副班长、心理委员
A30: 27 | B30: 2012011705 | C30: 刘力嘉 | D30: 地质12-3班 | E30: 87.90 | F30: 90.63 | G30: 91.66 | H30: 96.24 | I30: 92% | J30: =E30*0.7+(F30+G30+H30)*0.1 -> 89.38 | K30: 601 | M30: 校英协副主席
A31: 28 | B31: 2012010008 | C31: 杨柳 | D31: 地质12创 | E31: 88.42 | F31: 88.66 | G31: 91.27 | H31: 94.05 | I31: 97% | J31: =E31*0.7+(F31+G31+H31)*0.1 -> 89.29 | K31: 568 | M31: 院会部长、创意社团主席
A32: 29 | B32: 2012010066 | C32: 彭彦林 | D32: 地质12-2班 | E32: 90.60 | F32: 88.06 | G32: 83.00 | H32: 84.15 | I32: 92% | J32: =E32*0.7+(F32+G32+H32)*0.1 -> 88.94 | K32: 569 | L32: 放弃
A33: 30 | B33: 2012011232 | C33: 闻天慧 | D33: 地质12-5班 | E33: 88.14 | F33: 89.78 | G33: 90.96 | H33: 90.98 | I33: 92% | J33: =E33*0.7+(F33+G33+H33)*0.1 -> 88.87 | K33: 548 | M33: 学习委员
A34: 31 | B34: 2012010082 | C34: 胡珊珊 | D34: 地质12-3班 | E34: 88.40 | F34: 93.43 | G34: 91.46 | H34: 84.71 | I34: 97% | J34: =E34*0.7+(F34+G34+H34)*0.1 -> 88.84 | K34: 531 | L34: 放弃
A35: 32 | B35: 2012011102 | C35: 马肖琳 | D35: 地质12-1班 | E35: 87.64 | F35: 84.75 | G35: 91.82 | H35: 97.73 | I35: 92% | J35: =E35*0.7+(F35+G35+H35)*0.1 -> 88.78 | K35: 608 | M35: 团支书
A36: 33 | B36: 2012010146 | C36: 荣乘锐 | D36: 地质12-4班 | E36: 87.98 | F36: 88.52 | G36: 91.78 | H36: 90.08 | I36: 93% | J36: =E36*0.7+(F36+G36+H36)*0.1 -> 88.62 | K36: 466 | M36: 班长
A37: 34 | B37: 2012010100 | C37: 李俊巍 | D37: 地质12-3班 | E37: 86.84 | F37: 88.31 | G37: 93.04 | H37: 94.43 | I37: 92% | J37: =E37*0.7+(F37+G37+H37)*0.1 -> 88.37 | K37: 485 | M37: 台球协会主席
A38: 35 | B38: 2012010019 | C38: 贺智博 | D38: 地质12卓 | E38: 87.16 | F38: 89.01 | G38: 88.93 | H38: 94.83 | I38: 88% | J38: =E38*0.7+(F38+G38+H38)*0.1 -> 88.29 | K38: 449
A39: 36 | B39: 2012010083 | C39: 黄一舟 | D39: 地质12-3班 | E39: 87.22 | F39: 89.12 | G39: 91.66 | H39: 90.70 | I39: 92% | J39: =E39*0.7+(F39+G39+H39)*0.1 -> 88.20 | K39: 576 | M39: 团支书、院社联部长
A40: 37 | B40: 2012010044 | C40: 高胜美 | D40: 地质12卓 | E40: 86.77 | F40: 89.02 | G40: 90.64 | H40: 93.18 | I40: 90% | J40: =E40*0.7+(F40+G40+H40)*0.1 -> 88.02 | K40: 508 | M40: 团支书，院会部长
A41: 38 | B41: 2012010059 | C41: 贾凯育 | D41: 地质12卓 | E41: 86.87 | F41: 89.51 | G41: 91.55 | H41: 91.03 | I41: 90% | J41: =E41*0.7+(F41+G41+H41)*0.1 -> 88.02 | K41: 489 | M41: 宣传委员
A42: 39 | B42: 2012011827 | C42: 谢华锋 | D42: 地质12创 | E42: 86.91 | F42: 90.23 | G42: 88.08 | H42: 92.79 | I42: 91% | J42: =E42*0.7+(F42+G42+H42)*0.1 -> 87.95 | K42: 585 | M42: 学习委员
A43: 40 | B43: 2012010042 | C43: 樊小容 | D43: 地质12卓 | E43: 87.14 | F43: 91.19 | G43: 87.70 | H43: 90.02 | I43: 93% | J43: =E43*0.7+(F43+G43+H43)*0.1 -> 87.89 | K43: 487
A44: 41 | B44: 2012010774 | C44: 李胜男 | D44: 地质12创 | E44: 86.55 | F44: 88.91 | G44: 92.73 | H44: 91.12 | I44: 91% | J44: =E44*0.7+(F44+G44+H44)*0.1 -> 87.86 | K44: 591 | M44: 生活委员
A45: 42 | B45: 2012010165 | C45: 倪敏婕 | D45: 地质12-5班 | E45: 87.29 | F45: 88.00 | G45: 87.81 | H45: 91.09 | I45: 92% | J45: =E45*0.7+(F45+G45+H45)*0.1 -> 87.79 | K45: 551
A46: 43 | B46: 2012010022 | C46: 李东轩 | D46: 地质12创 | E46: 86.75 | F46: 91.13 | G46: 83.96 | H46: 95.56 | I46: 91% | J46: =E46*0.7+(F46+G46+H46)*0.1 -> 87.79 | K46: 561
A47: 44 | B47: 2012011229 | C47: 郭瑞婧 | D47: 地质12创 | E47: 86.82 | F47: 87.68 | G47: 90.95 | H47: 89.43 | I47: 90% | J47: =E47*0.7+(F47+G47+H47)*0.1 -> 87.58 | K47: 555 | M47: 学习委员
A48: 45 | B48: 2012010796 | C48: 胡越 | D48: 地质12创 | E48: 85.45 | F48: 89.40 | G48: 92.46 | H48: 94.86 | I48: 86% | J48: =E48*0.7+(F48+G48+H48)*0.1 -> 87.49 | K48: 514 | M48: 团支书、校会部长
A49: 46 | B49: 2012010159 | C49: 周子富 | D49: 地质12-4班 | E49: 86.61 | F49: 89.57 | G49: 89.67 | H49: 89.12 | I49: 92% | J49: =E49*0.7+(F49+G49+H49)*0.1 -> 87.46 | K49: 486 | M49: 院会副主席、班长
A50: 47 | B50: 2012011483 | C50: 姜芳芳 | D50: 地质12-5班 | E50: 86.57 | F50: 88.94 | G50: 89.98 | H50: 89.73 | I50: 89% | J50: =E50*0.7+(F50+G50+H50)*0.1 -> 87.46 | K50: 508
A51: 48 | B51: 2012010135 | C51: 冯乾乾 | D51: 地质12卓 | E51: 86.49 | F51: 85.86 | G51: 90.65 | H51: 92.11 | I51: 86% | J51: =E51*0.7+(F51+G51+H51)*0.1 -> 87.41 | K51: 436 | M51: 院社联部长
A52: 49 | B52: 2012010040 | C52: 诸丹诚 | D52: 地质12创 | E52: 87.01 | F52: 91.11 | G52: 78.77 | H52: 93.56 | I52: 89% | J52: =E52*0.7+(F52+G52+H52)*0.1 -> 87.25 | K52: 614 | M52: 学习委员
A53: 50 | B53: 2012010027 | C53: 钱文文 | D53: 地质12-1班 | E53: 86.73 | F53: 85.26 | G53: 89.31 | H53: 90.58 | I53: 86% | J53: =E53*0.7+(F53+G53+H53)*0.1 -> 87.23 | K53: 449
A54: 51 | B54: 2012010086 | C54: 廖青 | D54: 地质12卓 | E54: 86.21 | F54: 87.73 | G54: 88.26 | H54: 91.50 | I54: 84% | J54: =E54*0.7+(F54+G54+H54)*0.1 -> 87.10 | K54: 553 | M54: 校青协部长、心理委员
A55: 52 | B55: 2012010048 | C55: 田博凡 | D55: 地质12-2班 | E55: 86.32 | F55: 87.99 | G55: 87.50 | H55: 91.23 | I55: 90% | J55: =E55*0.7+(F55+G55+H55)*0.1 -> 87.09 | K55: 552
A56: 53 | B56: 2012010017 | C56: 干磊 | D56: 地质12卓 | E56: 84.93 | F56: 92.47 | G56: 91.30 | H56: 91.54 | I56: 83% | J56: =E56*0.7+(F56+G56+H56)*0.1 -> 86.98 | K56: 546 | M56: 绿芽主席、生活委员
A57: 54 | B57: 2012010189 | C57: 刘畅 | D57: 地质12-5班 | E57: 85.95 | F57: 86.80 | G57: 90.85 | H57: 90.08 | I57: 89% | J57: =E57*0.7+(F57+G57+H57)*0.1 -> 86.94 | K57: 502 | M57: 校红十字会主席
A58: 55 | B58: 2012010103 | C58: 毛红杰 | D58: 地质12-3班 | E58: 85.54 | F58: 89.73 | G58: 87.77 | H58: 90.75 | I58: 88% | J58: =E58*0.7+(F58+G58+H58)*0.1 -> 86.70 | K58: 470
A59: 56 | B59: 2012010014 | C59: 陈国辉 | D59: 地质12卓 | E59: 85.32 | F59: 91.11 | G59: 88.24 | H59: 89.82 | I59: 88% | J59: =E59*0.7+(F59+G59+H59)*0.1 -> 86.64 | K59: 550
A60: 57 | B60: 2012010046 | C60: 罗源 | D60: 地质12-2班 | E60: 85.75 | F60: 87.30 | G60: 87.98 | H60: 90.77 | I60: 88% | J60: =E60*0.7+(F60+G60+H60)*0.1 -> 86.63 | K60: 495
A61: 58 | B61: 2012011509 | C61: 张天龙 | D61: 地质12-5班 | E61: 85.82 | F61: 88.29 | G61: 89.23 | H61: 85.87 | I61: 87% | J61: =E61*0.7+(F61+G61+H61)*0.1 -> 86.42 | K61: 494
A62: 59 | B62: 2012010166 | C62: 邵郑颖 | D62: 地质12创 | E62: 84.92 | F62: 87.81 | G62: 87.51 | H62: 94.29 | I62: 90% | J62: =E62*0.7+(F62+G62+H62)*0.1 -> 86.40 | K62: 532
A63: 60 | B63: 2012010080 | C63: 周昕宇 | D63: 地质12-2班 | E63: 85.84 | F63: 90.01 | G63: 89.50 | H63: 83.49 | I63: 86% | J63: =E63*0.7+(F63+G63+H63)*0.1 -> 86.39 | K63: 564
A64: 61 | B64: 2012010180 | C64: 宋万达 | D64: 地质12-5班 | E64: 85.18 | F64: 89.15 | G64: 89.67 | H64: 86.40 | I64: 87% | J64: =E64*0.7+(F64+G64+H64)*0.1 -> 86.15 | K64: 508 | M64: 班级生活委员
A65: 62 | B65: 2012010109 | C65: 王宇 | D65: 地质12卓 | E65: 84.70 | F65: 87.59 | G65: 88.88 | H65: 90.52 | I65: 84% | J65: =E65*0.7+(F65+G65+H65)*0.1 -> 85.99 | K65: 543
A66: 63 | B66: 2012010084 | C66: 李涵 | D66: 地质12-3班 | E66: 83.83 | F66: 86.63 | G66: 91.70 | H66: 94.59 | I66: 80% | J66: =E66*0.7+(F66+G66+H66)*0.1 -> 85.98 | K66: 500
A67: 64 | B67: 2012010113 | C67: 徐卓成 | D67: 地质12-3班 | E67: 86.23 | F67: 85.40 | G67: 86.68 | H67: 81.60 | I67: 85% | J67: =E67*0.7+(F67+G67+H67)*0.1 -> 85.73 | K67: 608
A68: 65 | B68: 2012010139 | C68: 韩一哲 | D68: 地质12卓 | E68: 84.77 | F68: 85.48 | G68: 90.42 | H68: 87.44 | I68: 81% | J68: =E68*0.7+(F68+G68+H68)*0.1 -> 85.68 | K68: 476
A69: 66 | B69: 2012010002 | C69: 李蕊 | D69: 地质12卓 | E69: 84.54 | F69: 85.93 | G69: 88.73 | H69: 90.09 | I69: 88% | J69: =E69*0.7+(F69+G69+H69)*0.1 -> 85.65 | K69: 486
A70: 67 | B70: 2012010013 | C70: 赵语嫣 | D70: 地质12创 | E70: 84.11 | F70: 87.08 | G70: 89.70 | H70: 90.76 | I70: 79% | J70: =E70*0.7+(F70+G70+H70)*0.1 -> 85.63 | K70: 546 | M70: 广播台台长
A71: 68 | B71: 2012010029 | C71: 王管 | D71: 地质12-1班 | E71: 85.02 | F71: 88.46 | G71: 82.47 | H71: 89.68 | I71: 88% | J71: =E71*0.7+(F71+G71+H71)*0.1 -> 85.58 | K71: 481
A72: 69 | B72: 2012011398 | C72: 余跃 | D72: 地质12-5班 | E72: 85.46 | F72: 88.67 | G72: 90.67 | H72: 78.03 | I72: 83% | J72: =E72*0.7+(F72+G72+H72)*0.1 -> 85.56 | K72: 436
A73: 70 | B73: 2012010004 | C73: 牟琪琪 | D73: 地质12-1班 | E73: 83.85 | F73: 88.73 | G73: 89.72 | H73: 89.20 | I73: 81% | J73: =E73*0.7+(F73+G73+H73)*0.1 -> 85.46 | K73: 534
A74: 71 | B74: 2012010007 | C74: 肖婧 | D74: 地质12-1班 | E74: 84.66 | F74: 86.13 | G74: 85.76 | H74: 90.03 | I74: 88% | J74: =E74*0.7+(F74+G74+H74)*0.1 -> 85.45 | K74: 506
A75: 72 | B75: 2012010085 | C75: 李林致 | D75: 地质12-3班 | E75: 84.07 | F75: 86.71 | G75: 91.27 | H75: 87.65 | I75: 80% | J75: =E75*0.7+(F75+G75+H75)*0.1 -> 85.41 | K75: 449
A76: 73 | B76: 2012010053 | C76: 翟亚楠 | D76: 地质12-2班 | E76: 85.04 | F76: 85.88 | G76: 86.83 | H76: 85.57 | I76: 86% | J76: =E76*0.7+(F76+G76+H76)*0.1 -> 85.36 | K76: 449
A77: 74 | B77: 2012010045 | C77: 刘烨 | D77: 地质12-2班 | E77: 84.63 | F77: 88.18 | G77: 84.15 | H77: 87.83 | I77: 85% | J77: =E77*0.7+(F77+G77+H77)*0.1 -> 85.26 | K77: 492
A78: 75 | B78: 2012010047 | C78: 孙爽晨 | D78: 地质12创 | E78: 84.20 | F78: 86.54 | G78: 86.66 | H78: 88.46 | I78: 88% | J78: =E78*0.7+(F78+G78+H78)*0.1 -> 85.10 | K78: 544
A79: 76 | B79: 2012010051 | C79: 邢晓凡 | D79: 地质12-2班 | E79: 84.08 | F79: 87.00 | G79: 86.82 | H79: 87.99 | I79: 80% | J79: =E79*0.7+(F79+G79+H79)*0.1 -> 85.04 | K79: 523
A80: 77 | B80: 2012010096 | C80: 丁旭光 | D80: 地质12-3班 | E80: 83.04 | F80: 87.48 | G80: 89.01 | H80: 92.59 | I80: 76% | J80: =E80*0.7+(F80+G80+H80)*0.1 -> 85.03 | K80: 402
A81: 78 | B81: 2012010114 | C81: 杨滔 | D81: 地质12创 | E81: 83.55 | F81: 84.19 | G81: 90.33 | H81: 90.17 | I81: 81% | J81: =E81*0.7+(F81+G81+H81)*0.1 -> 84.95 | K81: 447 | M81: 军事爱好者协会主席
A82: 79 | B82: 2012010079 | C82: 赵燚 | D82: 地质12-2班 | E82: 83.98 | F82: 88.08 | G82: 86.77 | H82: 86.35 | I82: 83% | J82: =E82*0.7+(F82+G82+H82)*0.1 -> 84.91 | K82: 460
A83: 80 | B83: 2012011795 | C83: 张双 | D83: 地质12-5班 | E83: 83.58 | F83: 90.68 | G83: 84.75 | H83: 87.96 | I83: 79% | J83: =E83*0.7+(F83+G83+H83)*0.1 -> 84.84 | K83: 415
A84: 81 | B84: 2012010181 | C84: 滕金良 | D84: 地质12创 | E84: 83.60 | F84: 84.80 | G84: 90.01 | H84: 87.38 | I84: 81% | J84: =E84*0.7+(F84+G84+H84)*0.1 -> 84.74 | K84: 599
A85: 82 | B85: 2012010049 | C85: 魏雪莹 | D85: 地质12-2班 | E85: 83.55 | F85: 83.96 | G85: 87.55 | H85: 89.97 | I85: 80% | J85: =E85*0.7+(F85+G85+H85)*0.1 -> 84.63 | K85: 526
A86: 83 | B86: 2012010106 | C86: 任利兵 | D86: 地质12-3班 | E86: 82.51 | F86: 88.22 | G86: 84.94 | H86: 93.47 | I86: 80% | J86: =E86*0.7+(F86+G86+H86)*0.1 -> 84.42 | K86: 428
A87: 84 | B87: 2012010020 | C87: 胡梦成 | D87: 地质12-1班 | E87: 83.93 | F87: 83.31 | G87: 87.62 | H87: 84.86 | I87: 81% | J87: =E87*0.7+(F87+G87+H87)*0.1 -> 84.33 | K87: 482
A88: 85 | B88: 2012010087 | C88: 刘梅 | D88: 地质12-3班 | E88: 83.09 | F88: 84.80 | G88: 88.50 | H88: 88.17 | I88: 83% | J88: =E88*0.7+(F88+G88+H88)*0.1 -> 84.31 | K88: 523
A89: 86 | B89: 2012010118 | C89: 张俊锋 | D89: 地质12-3班 | E89: 83.19 | F89: 84.47 | G89: 86.26 | H89: 89.88 | I89: 85% | J89: =E89*0.7+(F89+G89+H89)*0.1 -> 84.29 | K89: 424
A90: 87 | B90: 2012010141 | C90: 李杰 | D90: 地质12-4班 | E90: 84.09 | F90: 83.89 | G90: 85.27 | H90: 84.44 | I90: 80% | J90: =E90*0.7+(F90+G90+H90)*0.1 -> 84.22 | K90: 458
A91: 88 | B91: 2012010060 | C91: 金沙 | D91: 地质12卓 | E91: 81.39 | F91: 85.77 | G91: 88.74 | H91: 97.38 | I91: 79% | J91: =E91*0.7+(F91+G91+H91)*0.1 -> 84.16 | K91: 514
A92: 89 | B92: 2012010154 | C92: 徐世东 | D92: 地质12创 | E92: 82.86 | F92: 83.35 | G92: 88.24 | H92: 88.94 | I92: 81% | J92: =E92*0.7+(F92+G92+H92)*0.1 -> 84.06 | K92: 583
A93: 90 | B93: 2012010132 | C93: 杨经纬 | D93: 地质12-4班 | E93: 83.22 | F93: 83.96 | G93: 86.50 | H93: 86.40 | I93: 86% | J93: =E93*0.7+(F93+G93+H93)*0.1 -> 83.94 | K93: 592
A94: 91 | B94: 2012010064 | C94: 李玄 | D94: 地质12-2班 | E94: 82.39 | F94: 87.63 | G94: 85.21 | H94: 89.75 | I94: 73% | J94: =E94*0.7+(F94+G94+H94)*0.1 -> 83.93 | K94: 502
A95: 92 | B95: 2012010033 | C95: 王正 | D95: 地质12-1班 | E95: 82.64 | F95: 87.41 | G95: 86.23 | H95: 87.06 | I95: 78% | J95: =E95*0.7+(F95+G95+H95)*0.1 -> 83.92 | K95: 449
A96: 93 | B96: 2012011097 | C96: 郑旻 | D96: 地质12-1班 | E96: 82.42 | F96: 86.01 | G96: 87.04 | H96: 87.75 | I96: 78% | J96: =E96*0.7+(F96+G96+H96)*0.1 -> 83.77 | K96: 545
A97: 94 | B97: 2012010130 | C97: 唐倩 | D97: 地质12-4班 | E97: 82.62 | F97: 89.18 | G97: 83.12 | H97: 84.16 | I97: 76% | J97: =E97*0.7+(F97+G97+H97)*0.1 -> 83.48 | K97: 478
A98: 95 | B98: 2012010039 | C98: 张毅 | D98: 地质12-1班 | E98: 82.56 | F98: 83.42 | G98: 82.87 | H98: 89.59 | I98: 76% | J98: =E98*0.7+(F98+G98+H98)*0.1 -> 83.38 | K98: 434
A99: 96 | B99: 2012010129 | C99: 邱存 | D99: 地质12-4班 | E99: 82.54 | F99: 80.26 | G99: 85.41 | H99: 89.87 | I99: 78% | J99: =E99*0.7+(F99+G99+H99)*0.1 -> 83.33 | K99: 570
A100: 97 | B100: 2012010094 | C100: 曹瑛倬 | D100: 地质12-3班 | E100: 80.74 | F100: 88.38 | G100: 87.24 | H100: 91.83 | I100: 76% | J100: =E100*0.7+(F100+G100+H100)*0.1 -> 83.27 | K100: 462
A101: 98 | B101: 2012010093 | C101: 周凌希 | D101: 地质12-3班 | E101: 80.45 | F101: 85.23 | G101: 87.64 | H101: 96.00 | I101: 66% | J101: =E101*0.7+(F101+G101+H101)*0.1 -> 83.20 | K101: 472
A102: 99 | B102: 2012011152 | C102: 彭博 | D102: 地质12创 | E102: 83.89 | F102: 83.80 | G102: 74.53 | H102: 86.19 | I102: 81% | J102: =E102*0.7+(F102+G102+H102)*0.1 -> 83.18 | K102: 587
A103: 100 | B103: 2012010003 | C103: 刘梦颖 | D103: 地质12卓 | E103: 82.32 | F103: 87.46 | G103: 83.25 | H103: 84.44 | I103: 76% | J103: =E103*0.7+(F103+G103+H103)*0.1 -> 83.14 | K103: 573
A104: 101 | B104: 2012011080 | C104: 胡嘉靖 | D104: 地质12-1班 | E104: 81.83 | F104: 87.57 | G104: 84.48 | H104: 86.40 | I104: 73% | J104: =E104*0.7+(F104+G104+H104)*0.1 -> 83.13 | K104: 576
A105: 102 | B105: 2012010030 | C105: 王启超 | D105: 地质12-1班 | E105: 82.36 | F105: 83.66 | G105: 81.60 | H105: 89.35 | I105: 69% | J105: =E105*0.7+(F105+G105+H105)*0.1 -> 83.11 | K105: 481
A106: 103 | B106: 2012011263 | C106: 李玲珑 | D106: 地质12-5班 | E106: 81.12 | F106: 88.14 | G106: 87.71 | H106: 86.17 | I106: 68% | J106: =E106*0.7+(F106+G106+H106)*0.1 -> 82.98 | K106: 540 | M106: 校学生会权益部部长
A107: 104 | B107: 2012010693 | C107: 温婧 | D107: 地质12创 | E107: 81.00 | F107: 87.79 | G107: 86.70 | H107: 88.27 | I107: 72% | J107: =E107*0.7+(F107+G107+H107)*0.1 -> 82.98 | K107: 539 | M107: 文宣委员
A108: 105 | B108: 2012010057 | C108: 胡德成 | D108: 地质12创 | E108: 82.08 | F108: 84.46 | G108: 85.25 | H108: 85.00 | I108: 78% | J108: =E108*0.7+(F108+G108+H108)*0.1 -> 82.93 | K108: 558
A109: 106 | B109: 2012010121 | C109: 郭静怡 | D109: 地质12-4班 | E109: 82.17 | F109: 82.94 | G109: 82.67 | H109: 87.57 | I109: 75% | J109: =E109*0.7+(F109+G109+H109)*0.1 -> 82.84 | K109: 502
A110: 107 | B110: 2012010058 | C110: 黄浩天 | D110: 地质12卓 | E110: 81.52 | F110: 85.25 | G110: 82.81 | H110: 89.50 | I110: 76% | J110: =E110*0.7+(F110+G110+H110)*0.1 -> 82.82 | K110: 553
A111: 108 | B111: 2012010589 | C111: 戴璐 | D111: 地质12-5班 | E111: 82.47 | F111: 81.35 | G111: 86.18 | H111: 83.31 | I111: 75% | J111: =E111*0.7+(F111+G111+H111)*0.1 -> 82.81 | K111: 514 | M111: 心理委员
A112: 109 | B112: 2012010497 | C112: 向阳 | D112: 地质12-5班 | E112: 81.67 | F112: 86.34 | G112: 86.85 | H112: 83.25 | I112: 72% | J112: =E112*0.7+(F112+G112+H112)*0.1 -> 82.81 | K112: 517 | M112: 体育委员
A113: 110 | B113: 2012010104 | C113: 庞道龙 | D113: 地质12-3班 | E113: 83.01 | F113: 87.44 | G113: 85.70 | H113: 72.84 | I113: 78% | J113: =E113*0.7+(F113+G113+H113)*0.1 -> 82.71 | K113: 545
A114: 111 | B114: 2012010142 | C114: 李文奇 | D114: 地质12-4班 | E114: 81.82 | F114: 82.87 | G114: 86.31 | H114: 84.11 | I114: 69% | J114: =E114*0.7+(F114+G114+H114)*0.1 -> 82.60 | K114: 549
A115: 112 | B115: 2012010110 | C115: 王子安 | D115: 地质12创 | E115: 80.46 | F115: 87.43 | G115: 88.07 | H115: 87.17 | I115: 74% | J115: =E115*0.7+(F115+G115+H115)*0.1 -> 82.59 | K115: 513 | M115: 团支书、院社联主席、文宣委员
A116: 113 | B116: 2012010018 | C116: 巩文龙 | D116: 地质12卓 | E116: 81.15 | F116: 86.10 | G116: 85.95 | H116: 85.70 | I116: 71% | J116: =E116*0.7+(F116+G116+H116)*0.1 -> 82.58 | K116: 432
A117: 114 | B117: 2012010156 | C117: 喻煌 | D117: 地质12-4班 | E117: 81.79 | F117: 83.11 | G117: 86.16 | H117: 82.89 | I117: 71% | J117: =E117*0.7+(F117+G117+H117)*0.1 -> 82.47 | K117: 493
A118: 115 | B118: 2012010136 | C118: 冯兴 | D118: 地质12-4班 | E118: 81.96 | F118: 85.11 | G118: 81.09 | H118: 84.22 | I118: 78% | J118: =E118*0.7+(F118+G118+H118)*0.1 -> 82.41 | K118: 431
A119: 116 | B119: 2012010157 | C119: 张宝淼 | D119: 地质12创 | E119: 81.59 | F119: 80.76 | G119: 84.95 | H119: 87.22 | I119: 79% | J119: =E119*0.7+(F119+G119+H119)*0.1 -> 82.41 | K119: 546
A120: 117 | B120: 2012011729 | C120: 孙炜然 | D120: 地质12-5班 | E120: 80.26 | F120: 91.30 | G120: 83.02 | H120: 87.39 | I120: 51% | J120: =E120*0.7+(F120+G120+H120)*0.1 -> 82.35 | K120: 531 | M120: 流云车协主席 文艺委员
A121: 118 | B121: 2012010081 | C121: 鲍凤娇 | D121: 地质12-3班 | E121: 81.20 | F121: 84.25 | G121: 85.88 | H121: 84.42 | I121: 71% | J121: =E121*0.7+(F121+G121+H121)*0.1 -> 82.29 | K121: 504
A122: 119 | B122: 2012011699 | C122: 韩宗晏 | D122: 地质12-3班 | E122: 79.58 | F122: 89.32 | G122: 86.68 | H122: 89.27 | I122: 63% | J122: =E122*0.7+(F122+G122+H122)*0.1 -> 82.23 | K122: 484
A123: 120 | B123: 2012010054 | C123: 崔明洋 | D123: 地质12卓 | E123: 81.32 | F123: 84.94 | G123: 86.35 | H123: 81.47 | I123: 71% | J123: =E123*0.7+(F123+G123+H123)*0.1 -> 82.20 | K123: 525
A124: 121 | B124: 2012011384 | C124: 王一博 | D124: 地质12创 | E124: 81.38 | F124: 80.33 | G124: 83.41 | H124: 87.96 | I124: 74% | J124: =E124*0.7+(F124+G124+H124)*0.1 -> 82.14 | K124: 539
A125: 122 | B125: 2010021419 | C125: 刘杰 | D125: 地质12-4班 | E125: 79.72 | G125: 84.70 | H125: 88.76 | I125: 66% | J125: =E125*0.7+(G125+H125)/2*0.3 -> 81.82 | K125: 558
A126: 123 | B126: 2012010137 | C126: 冯野 | D126: 地质12卓 | E126: 81.04 | F126: 84.54 | G126: 83.89 | H126: 82.49 | I126: 66% | J126: =E126*0.7+(F126+G126+H126)*0.1 -> 81.82 | K126: 581
A127: 124 | B127: 2012010153 | C127: 郗少博 | D127: 地质12-4班 | E127: 80.90 | F127: 86.87 | G127: 82.17 | H127: 82.45 | I127: 76% | J127: =E127*0.7+(F127+G127+H127)*0.1 -> 81.78 | K127: 517
A128: 125 | B128: 2012010075 | C128: 严睿 | D128: 地质12-2班 | E128: 80.75 | F128: 82.50 | G128: 84.28 | H128: 85.70 | I128: 69% | J128: =E128*0.7+(F128+G128+H128)*0.1 -> 81.77 | K128: 463
A129: 126 | B129: 2012010152 | C129: 伍炜 | D129: 地质12-4班 | E129: 81.97 | F129: 83.95 | G129: 75.99 | H129: 83.28 | I129: 73% | J129: =E129*0.7+(F129+G129+H129)*0.1 -> 81.70 | K129: 427
A130: 127 | B130: 2012010061 | C130: 赖继锋 | D130: 地质12卓 | E130: 80.65 | F130: 84.48 | G130: 82.45 | H130: 85.48 | I130: 72% | J130: =E130*0.7+(F130+G130+H130)*0.1 -> 81.69 | K130: 447
A131: 128 | B131: 2012010144 | C131: 钱超 | D131: 地质12创 | E131: 81.29 | F131: 76.47 | G131: 85.67 | H131: 85.79 | I131: 76% | J131: =E131*0.7+(F131+G131+H131)*0.1 -> 81.69 | K131: 456
A132: 129 | B132: 2012011062 | C132: 折文海 | D132: 地质12-2班 | E132: 81.18 | F132: 83.55 | G132: 80.65 | H132: 84.00 | I132: 73% | J132: =E132*0.7+(F132+G132+H132)*0.1 -> 81.64 | K132: 458
A133: 130 | B133: 2012010211 | C133: 于海跃 | D133: 地质12-5班 | E133: 80.18 | F133: 84.09 | G133: 87.84 | H133: 83.10 | I133: 66% | J133: =E133*0.7+(F133+G133+H133)*0.1 -> 81.63 | K133: 441 | M133: 院学生会主席
A134: 131 | B134: 2012010038 | C134: 张林 | D134: 地质12创 | E134: 79.44 | F134: 88.94 | G134: 84.64 | H134: 84.87 | I134: 59% | J134: =E134*0.7+(F134+G134+H134)*0.1 -> 81.45 | K134: 564 | M134: 组体委员、健美协会主席
A135: 132 | B135: 2012011532 | C135: 宋凯越 | D135: 地质12-5班 | E135: 80.93 | F135: 83.42 | G135: 81.60 | H135: 82.99 | I135: 74% | J135: =E135*0.7+(F135+G135+H135)*0.1 -> 81.45 | K135: 434 | M135: 武术社社长
A136: 133 | B136: 2012010185 | C136: 文剑航 | D136: 地质12-5班 | E136: 80.32 | F136: 84.24 | G136: 83.78 | H136: 83.67 | I136: 64% | J136: =E136*0.7+(F136+G136+H136)*0.1 -> 81.40 | K136: 471
A137: 134 | B137: 2012010147 | C137: 时新强 | D137: 地质12-4班 | E137: 80.47 | F137: 83.62 | G137: 87.87 | H137: 78.41 | I137: 71% | J137: =E137*0.7+(F137+G137+H137)*0.1 -> 81.32 | K137: 454
A138: 135 | B138: 2012010034 | C138: 杨志辉 | D138: 地质12-1班 | E138: 80.10 | F138: 82.82 | G138: 82.71 | H138: 86.49 | I138: 69% | J138: =E138*0.7+(F138+G138+H138)*0.1 -> 81.27 | K138: 449
A139: 136 | B139: 2012010124 | C139: 李青霖 | D139: 地质12-4班 | E139: 79.38 | F139: 87.27 | G139: 85.46 | H139: 84.10 | I139: 64% | J139: =E139*0.7+(F139+G139+H139)*0.1 -> 81.25 | K139: 457
A140: 137 | B140: 2012010011 | C140: 赵若书 | D140: 地质12-1班 | E140: 79.35 | F140: 85.84 | G140: 83.16 | H140: 87.41 | I140: 66% | J140: =E140*0.7+(F140+G140+H140)*0.1 -> 81.18 | K140: 474
A141: 138 | B141: 2012010101 | C141: 刘坤 | D141: 地质12-3班 | E141: 80.25 | F141: 85.21 | G141: 83.67 | H141: 80.99 | I141: 69% | J141: =E141*0.7+(F141+G141+H141)*0.1 -> 81.16 | K141: 434
A142: 139 | B142: 2012010028 | C142: 檀亮 | D142: 地质12-1班 | E142: 79.86 | F142: 85.27 | G142: 82.99 | H142: 84.21 | I142: 61% | J142: =E142*0.7+(F142+G142+H142)*0.1 -> 81.15 | K142: 441
A143: 140 | B143: 2012010102 | C143: 吕自强 | D143: 地质12-3班 | E143: 80.53 | F143: 83.00 | G143: 83.80 | H143: 80.82 | I143: 76% | J143: =E143*0.7+(F143+G143+H143)*0.1 -> 81.14 | K143: 405
A144: 141 | B144: 2012010140 | C144: 雷世达 | D144: 地质12-4班 | E144: 80.41 | F144: 84.07 | G144: 83.60 | H144: 79.75 | I144: 59% | J144: =E144*0.7+(F144+G144+H144)*0.1 -> 81.03 | K144: 460
A145: 142 | B145: 2012010025 | C145: 刘锐 | D145: 地质12-1班 | E145: 80.32 | F145: 82.92 | G145: 82.50 | H145: 81.79 | I145: 76% | J145: =E145*0.7+(F145+G145+H145)*0.1 -> 80.94 | K145: 463
A146: 143 | B146: 2012010134 | C146: 蔡天泽 | D146: 地质12-4班 | E146: 79.18 | F146: 82.76 | G146: 88.51 | H146: 83.70 | I146: 63% | J146: =E146*0.7+(F146+G146+H146)*0.1 -> 80.92 | K146: 481
A147: 144 | B147: 2012011588 | C147: 汤文茂 | D147: 地质12创 | E147: 79.67 | F147: 82.78 | G147: 84.96 | H147: 83.09 | I147: 64% | J147: =E147*0.7+(F147+G147+H147)*0.1 -> 80.85 | K147: 562
A148: 145 | B148: 2012010125 | C148: 林子微 | D148: 地质12-4班 | E148: 79.61 | F148: 81.63 | G148: 88.11 | H148: 80.94 | I148: 64% | J148: =E148*0.7+(F148+G148+H148)*0.1 -> 80.80 | K148: 540
A149: 146 | B149: 2012010050 | C149: 文思亮 | D149: 地质12-2班 | E149: 79.25 | F149: 83.23 | G149: 85.49 | H149: 83.97 | I149: 66% | J149: =E149*0.7+(F149+G149+H149)*0.1 -> 80.74 | K149: 522
A150: 147 | B150: 2012010099 | C150: 李董鑫 | D150: 地质12卓 | E150: 79.29 | F150: 81.79 | G150: 82.64 | H150: 86.39 | I150: 71% | J150: =E150*0.7+(F150+G150+H150)*0.1 -> 80.59 | K150: 441
A151: 148 | B151: 2012010056 | C151: 韩光 | D151: 地质12-2班 | E151: 79.91 | F151: 78.80 | G151: 79.44 | H151: 87.72 | I151: 69% | J151: =E151*0.7+(F151+G151+H151)*0.1 -> 80.54 | K151: 508
A152: 149 | B152: 2012010149 | C152: 苏田磊 | D152: 地质12-4班 | E152: 79.44 | F152: 84.87 | G152: 86.00 | H152: 76.14 | I152: 59% | J152: =E152*0.7+(F152+G152+H152)*0.1 -> 80.31 | K152: 469
A153: 150 | B153: 2012010016 | C153: 付和平 | D153: 地质12-1班 | E153: 79.27 | F153: 82.87 | G153: 81.64 | H153: 80.49 | I153: 64% | J153: =E153*0.7+(F153+G153+H153)*0.1 -> 79.99 | K153: 450
A154: 151 | B154: 2012010131 | C154: 滕佳 | D154: 地质12-4班 | E154: 78.99 | F154: 81.75 | G154: 80.16 | H154: 84.62 | I154: 71% | J154: =E154*0.7+(F154+G154+H154)*0.1 -> 79.95 | K154: 484
A155: 152 | B155: 2012010069 | C155: 王敬轩 | D155: 地质12-2班 | E155: 78.07 | F155: 84.97 | G155: 84.65 | H155: 81.35 | I155: 59% | J155: =E155*0.7+(F155+G155+H155)*0.1 -> 79.75 | K155: 473
A156: 153 | B156: 2012010026 | C156: 庞礴 | D156: 地质12-1班 | E156: 79.50 | F156: 81.94 | G156: 77.41 | H156: 81.29 | I156: 69% | J156: =E156*0.7+(F156+G156+H156)*0.1 -> 79.71 | K156: 449
A157: 154 | B157: 2012010021 | C157: 黎彬 | D157: 地质12-1班 | E157: 78.44 | F157: 84.63 | G157: 82.90 | H157: 79.79 | I157: 66% | J157: =E157*0.7+(F157+G157+H157)*0.1 -> 79.64 | K157: 433
A158: 155 | B158: 2012010091 | C158: 杨思博 | D158: 地质12-3班 | E158: 77.94 | F158: 83.11 | G158: 82.06 | H158: 84.45 | I158: 61% | J158: =E158*0.7+(F158+G158+H158)*0.1 -> 79.52 | K158: 549
A159: 156 | B159: 2012010150 | C159: 王磊 | D159: 地质12-4班 | E159: 78.67 | F159: 84.45 | G159: 82.46 | H159: 77.12 | I159: 63% | J159: =E159*0.7+(F159+G159+H159)*0.1 -> 79.47 | K159: 458
A160: 157 | B160: 2012010092 | C160: 赵彬 | D160: 地质12-3班 | E160: 77.73 | F160: 81.46 | G160: 82.95 | H160: 86.09 | I160: 64% | J160: =E160*0.7+(F160+G160+H160)*0.1 -> 79.46 | K160: 430
A161: 158 | B161: 2012010006 | C161: 卫晓怡 | D161: 地质12-1班 | E161: 78.07 | F161: 85.03 | G161: 78.93 | H161: 83.79 | I161: 69% | J161: =E161*0.7+(F161+G161+H161)*0.1 -> 79.42 | K161: 529
A162: 159 | B162: 2012011717 | C162: 张粲 | D162: 地质12-4班 | E162: 76.92 | F162: 85.00 | G162: 85.94 | H162: 84.79 | I162: 59% | J162: =E162*0.7+(F162+G162+H162)*0.1 -> 79.42 | K162: 454
A163: 160 | B163: 2012010120 | C163: 赵文靖 | D163: 地质12-3班 | E163: 78.31 | F163: 83.61 | G163: 79.25 | H163: 80.75 | I163: 58% | J163: =E163*0.7+(F163+G163+H163)*0.1 -> 79.18 | K163: 508
A164: 161 | B164: 2012010155 | C164: 余智超 | D164: 地质12创 | E164: 78.40 | F164: 80.77 | G164: 81.40 | H164: 79.34 | I164: 53% | J164: =E164*0.7+(F164+G164+H164)*0.1 -> 79.03 | K164: 586
A165: 162 | B165: 2012010043 | C165: 范秋雨 | D165: 地质12-2班 | E165: 77.74 | F165: 86.19 | G165: 84.05 | H165: 75.32 | I165: 69% | J165: =E165*0.7+(F165+G165+H165)*0.1 -> 78.98 | K165: 543
A166: 163 | B166: 2012010031 | C166: 王瑞丰 | D166: 地质12-1班 | E166: 77.62 | F166: 82.74 | G166: 78.96 | H166: 83.78 | I166: 58% | J166: =E166*0.7+(F166+G166+H166)*0.1 -> 78.88
A167: 164 | B167: 2012010133 | C167: 杨柳 | D167: 地质12-4班 | E167: 76.10 | F167: 80.21 | G167: 83.31 | H167: 89.10 | I167: 58% | J167: =E167*0.7+(F167+G167+H167)*0.1 -> 78.53 | K167: 464
A168: 165 | B168: 2012010077 | C168: 章天尘 | D168: 地质12-2班 | E168: 80.07 | F168: 76.43 | G168: 66.95 | H168: 80.89 | I168: 73% | J168: =E168*0.7+(F168+G168+H168)*0.1 -> 78.48 | K168: 588
A169: 166 | B169: 2012010151 | C169: 吴李珊 | D169: 地质12卓 | E169: 76.64 | F169: 82.56 | G169: 80.64 | H169: 84.21 | I169: 59% | J169: =E169*0.7+(F169+G169+H169)*0.1 -> 78.39 | K169: 450
A170: 167 | B170: 2012010105 | C170: 皮尔多斯·吾买尔 | D170: 地质12-3班 | E170: 76.35 | F170: 86.01 | G170: 82.36 | H170: 80.83 | I170: 54% | J170: =E170*0.7+(F170+G170+H170)*0.1 -> 78.36 | K170: 331
A171: 168 | B171: 2012010055 | C171: 苟雨浓 | D171: 地质12-2班 | E171: 76.67 | F171: 88.00 | G171: 84.32 | H171: 73.10 | I171: 68% | J171: =E171*0.7+(F171+G171+H171)*0.1 -> 78.21
A172: 169 | B172: 2012010088 | C172: 刘雅涵 | D172: 地质12-3班 | E172: 77.04 | F172: 78.86 | G172: 84.28 | H172: 76.06 | I172: 61% | J172: =E172*0.7+(F172+G172+H172)*0.1 -> 77.85 | K172: 538
A173: 170 | B173: 2012010202 | C173: 刘海平 | D173: 地质12-5班 | E173: 76.20 | F173: 83.68 | G173: 80.53 | H173: 79.73 | I173: 40% | J173: =E173*0.7+(F173+G173+H173)*0.1 -> 77.74 | K173: 475
A174: 171 | B174: 2012010095 | C174: 崔啸宇 | D174: 地质12卓 | E174: 75.96 | F174: 83.67 | G174: 80.01 | H174: 81.54 | I174: 53% | J174: =E174*0.7+(F174+G174+H174)*0.1 -> 77.69 | K174: 443
A175: 172 | B175: 2012010116 | C175: 姚舒峰 | D175: 地质12卓 | E175: 76.37 | F175: 80.23 | G175: 81.39 | H175: 79.35 | I175: 55% | J175: =E175*0.7+(F175+G175+H175)*0.1 -> 77.56 | K175: 542
A176: 173 | B176: 2012010078 | C176: 赵一伟 | D176: 地质12-2班 | E176: 75.34 | F176: 78.69 | G176: 83.49 | H176: 81.19 | I176: 54% | J176: =E176*0.7+(F176+G176+H176)*0.1 -> 77.08 | K176: 506
A177: 174 | B177: 2012011809 | C177: 马炯 | D177: 地质12-5班 | E177: 75.02 | F177: 83.47 | G177: 79.95 | H177: 79.13 | I177: 50% | J177: =E177*0.7+(F177+G177+H177)*0.1 -> 76.77 | K177: 428
A178: 175 | B178: 2012010068 | C178: 田杰 | D178: 地质12创 | E178: 75.50 | F178: 77.38 | G178: 78.05 | H178: 82.93 | I178: 55% | J178: =E178*0.7+(F178+G178+H178)*0.1 -> 76.69 | K178: 554 | M178: 军事爱好者协会主席
A179: 176 | B179: 2012011561 | C179: 史帅雨 | D179: 地质12-5班 | E179: 76.18 | F179: 80.98 | G179: 77.16 | H179: 75.10 | I179: 47% | J179: =E179*0.7+(F179+G179+H179)*0.1 -> 76.65 | K179: 406
A180: 177 | B180: 2012010112 | C180: 徐凯 | D180: 地质12卓 | E180: 74.78 | F180: 77.39 | G180: 80.97 | H180: 83.18 | I180: 53% | J180: =E180*0.7+(F180+G180+H180)*0.1 -> 76.50 | K180: 514
A181: 178 | B181: 2012011264 | C181: 李晓锦 | D181: 地质12-5班 | E181: 75.60 | F181: 84.08 | G181: 71.48 | H181: 80.01 | I181: 49% | J181: =E181*0.7+(F181+G181+H181)*0.1 -> 76.48 | K181: 498
A182: 179 | B182: 2012011650 | C182: 哈斯达尔·吐尔逊别克 | D182: 地质12-5班 | E182: 74.97 | F182: 85.23 | G182: 75.75 | H182: 78.68 | I182: 45% | J182: =E182*0.7+(F182+G182+H182)*0.1 -> 76.45 | K182: 483
A183: 180 | B183: 2012010162 | C183: 范津南 | D183: 地质12-5班 | E183: 74.67 | F183: 88.40 | G183: 77.06 | H183: 74.53 | I183: 47% | J183: =E183*0.7+(F183+G183+H183)*0.1 -> 76.27 | K183: 453 | M183: 话剧团团长
A184: 181 | B184: 2012010071 | C184: 王一鹤 | D184: 地质12-2班 | E184: 75.47 | F184: 87.98 | G184: 82.28 | H184: 63.74 | I184: 63% | J184: =E184*0.7+(F184+G184+H184)*0.1 -> 76.23 | K184: 431
A185: 182 | B185: 2012010036 | C185: 袁翰林 | D185: 地质12创 | E185: 74.63 | F185: 75.63 | G185: 82.74 | H185: 81.24 | I185: 48% | J185: =E185*0.7+(F185+G185+H185)*0.1 -> 76.20 | K185: 544
A186: 183 | B186: 2012010032 | C186: 王小天 | D186: 地质12-1班 | E186: 75.58 | F186: 78.37 | G186: 79.15 | H186: 73.64 | I186: 53% | J186: =E186*0.7+(F186+G186+H186)*0.1 -> 76.02 | K186: 456
A187: 184 | B187: 2012010827 | C187: 梁薇 | D187: 地质12-2班 | E187: 74.54 | F187: 74.70 | G187: 77.29 | H187: 80.78 | I187: 51% | J187: =E187*0.7+(F187+G187+H187)*0.1 -> 75.45 | K187: 467
A188: 185 | B188: 2012011072 | C188: 盛悦 | D188: 地质12-1班 | E188: 74.21 | F188: 79.19 | G188: 74.81 | H188: 82.59 | I188: 44% | J188: =E188*0.7+(F188+G188+H188)*0.1 -> 75.61 | K188: 426
A189: 186 | B189: 2012011513 | C189: 罗宇婧 | D189: 地质12-5班 | E189: 74.03 | F189: 73.93 | G189: 79.81 | H189: 81.55 | I189: 42% | J189: =E189*0.7+(F189+G189+H189)*0.1 -> 75.35 | K189: 372
A190: 187 | B190: 2012010076 | C190: 伊力亚尔·库来西江 | D190: 地质12-2班 | E190: 73.90 | F190: 79.49 | G190: 79.40 | H190: 76.59 | I190: 42% | J190: =E190*0.7+(F190+G190+H190)*0.1 -> 75.28 | K190: 411
A191: 188 | B191: 2012011929 | C191: 王文禹 | D191: 地质12-4班 | E191: 73.90 | F191: 77.71 | G191: 76.76 | H191: 78.73 | I191: 42% | J191: =E191*0.7+(F191+G191+H191)*0.1 -> 75.05 | K191: 436
A192: 189 | B192: 2012010063 | C192: 李刚 | D192: 地质12-2班 | E192: 72.57 | F192: 75.78 | G192: 73.57 | H192: 82.95 | I192: 44% | J192: =E192*0.7+(F192+G192+H192)*0.1 -> 74.03 | K192: 452
A193: 190 | B193: 2012010117 | C193: 张辰 | D193: 地质12-3班 | E193: 73.87 | F193: 80.53 | G193: 69.10 | H193: 71.55 | I193: 39% | J193: =E193*0.7+(F193+G193+H193)*0.1 -> 73.82 | K193: 461
A194: 191 | B194: 2012010024 | C194: 刘国麟 | D194: 地质12-1班 | E194: 72.70 | F194: 78.75 | G194: 71.10 | H194: 77.87 | I194: 41% | J194: =E194*0.7+(F194+G194+H194)*0.1 -> 73.66 | K194: 457
A195: 192 | B195: 2012011049 | C195: 冀远明 | D195: 地质12-2班 | E195: 73.61 | F195: 57.00 | G195: 81.01 | H195: 79.51 | I195: 46% | J195: =E195*0.7+(F195+G195+H195)*0.1 -> 73.28 | K195: 408
A196: 193 | B196: 2012010074 | C196: 文梓亦 | D196: 地质12-2班 | E196: 73.10 | F196: 76.83 | G196: 69.18 | H196: 74.86 | I196: 44% | J196: =E196*0.7+(F196+G196+H196)*0.1 -> 73.26 | K196: 531
A197: 194 | B197: 2012010098 | C197: 李博丰 | D197: 地质12-3班 | E197: 71.37 | F197: 77.75 | G197: 77.09 | H197: 77.69 | I197: 42% | J197: =E197*0.7+(F197+G197+H197)*0.1 -> 73.21 | K197: 438
A198: 195 | B198: 2012010067 | C198: 陶然 | D198: 地质12-2班 | E198: 71.73 | F198: 81.30 | G198: 68.18 | H198: 74.35 | I198: 46% | J198: =E198*0.7+(F198+G198+H198)*0.1 -> 72.59 | K198: 425
A199: 196 | B199: 2012010073 | C199: 王子豪 | D199: 地质12-2班 | E199: 70.83 | F199: 78.31 | G199: 74.02 | H199: 74.77 | I199: 36% | J199: =E199*0.7+(F199+G199+H199)*0.1 -> 72.29 | K199: 400
A200: 197 | B200: 2012010138 | C200: 付能斌 | D200: 地质12-4班 | E200: 70.78 | F200: 75.39 | G200: 74.04 | H200: 72.68 | I200: 46% | J200: =E200*0.7+(F200+G200+H200)*0.1 -> 71.76 | K200: 480
... 10 more rows

Sheet Sheet2

Sheet Sheet3
